bitfinex/quotes_SOLUSD_20250918
["timestamp","ask_amount","ask_price","bid_price","bid_amount"]
[1758216491699,3.97645936,251.48,251.41,0.68]
[1758216492017,4.66645936,251.48,251.41,0.03]
[1758216493399,14.60760776,251.48,251.41,0.03]
[1758216494795,4.66645936,251.48,251.41,0.03]
[1758216495001,34.08,251.47,251.41,0.03]
[1758216495208,4.66645936,251.48,251.41,0.03]
[1758216495391,34.08,251.49,251.41,0.68]
[1758216495707,34.77,251.49,251.41,0.68]
[1758216495909,0.69,251.49,251.41,0.68]
[1758216496093,34.08,251.5,251.42,13.59559401]
[1758216496689,34.08,251.5,251.43,3.97725012]
[1758216497610,0.69,251.54,251.44,14.52991715]
[1758216498481,0.69,251.54,251.45,0.65]
[1758216498681,4.66529136,251.56,251.46,3.97677563]
[1758216498886,0.69,251.56,251.47,14.52991715]
[1758216499087,4.66522341,251.56,251.47,14.52991715]
[1758216499308,3.97522341,251.56,251.47,14.52991715]
[1758216499610,0.69,251.55,251.47,13.87991715]
[1758216499989,0.69,251.54,251.46,26.0]
[1758216500191,6.57401644,251.53,251.42,3.97729026]
[1758216500404,0.69,251.52,251.43,26.0]
[1758216500610,0.69,251.51,251.43,26.0]
[1758216500797,4.66561544,251.54,251.45,3.97693378]
[1758216503614,4.66561544,251.54,251.45,13.91926824]
[1758216504103,0.69,251.53,251.45,3.97693378]
[1758216504513,0.69,251.52,251.45,13.59559401]
[1758216504719,0.69,251.52,251.45,39.59559401]
[1758216505421,5.88401644,251.56,251.45,39.59559401]
[1758216505422,0.69,251.56,251.47,13.59559401]
[1758216505626,4.66524388,251.56,251.48,3.97645936]
[1758216506659,0.69,251.56,251.48,3.97645936]
[1758216507024,0.06,251.6,251.53,0.28432314]
[1758216507344,4.03456605,251.6,251.53,0.28432314]
[1758216507555,0.06,251.6,251.53,0.28432314]
[1758216507850,4.03456916,251.6,251.53,4.25986328]
[1758216508051,0.69,251.59,251.49,4.03456605]
[1758216508253,6.57401644,251.58,251.49,26.0]
[1758216508437,0.69,251.57,251.49,26.0]
[1758216508631,0.69,251.56,251.49,26.0]
[1758216508949,0.69,251.55,251.49,26.0]
[1758216509346,4.66542007,251.55,251.49,26.0]
[1758216509652,4.66542007,251.55,251.49,29.97626765]
[1758216510027,0.75,251.6,251.5,14.52991715]
[1758216510241,0.69,251.59,251.5,14.52991715]
[1758216510463,0.69,251.58,251.49,29.97626765]
[1758216510624,0.69,251.57,251.5,26.0]
[1758216510950,0.69,251.57,251.45,34.32432314]
[1758216510951,0.69,251.56,251.45,13.59559401]
[1758216511157,0.69,251.55,251.44,3.97698047]
[1758216511352,19.79830442,251.54,251.43,3.97725012]
[1758216511523,0.69,251.53,251.43,3.97725012]
[1758216511725,0.69,251.52,251.43,3.97725012]
[1758216512528,3.97598505,251.51,251.43,3.97725012]
[1758216513135,3.97598505,251.51,251.43,29.97725012]
[1758216513136,0.72,251.5,251.43,29.97725012]
[1758216515452,0.72,251.5,251.44,13.59559401]
[1758216516532,0.72,251.5,251.45,3.97693378]
[1758216518331,26.0,251.58,251.46,14.24559401]
[1758216518649,4.69505232,251.57,251.48,13.59559401]
[1758216518949,0.72,251.57,251.48,13.59559401]
[1758216519355,0.72,251.57,251.49,0.65]
[1758216520149,3.97472256,251.59,251.51,13.59559401]
[1758216520330,4.7545854,251.6,251.51,13.59559401]
[1758216520536,0.72,251.59,251.51,13.59559401]
[1758216520836,0.72,251.58,251.51,13.59559401]
[1758216521237,4.0345854,251.6,251.51,14.24559401]
[1758216521442,4.7545854,251.6,251.51,14.24559401]
[1758216522755,4.7545854,251.6,251.52,3.97582697]
[1758216523342,0.06,251.6,251.53,0.65]
[1758216523752,0.06,251.6,251.54,13.59559401]
[1758216523952,0.78,251.6,251.52,26.0]
[1758216524357,0.72,251.59,251.51,3.97595592]
[1758216525653,4.6947391,251.59,251.51,3.97595592]
[1758216526664,0.72,251.59,251.51,3.97595592]
[1758216526869,0.06,251.6,251.52,14.24559401]
[1758216527171,0.72,251.59,251.48,26.0]
[1758216527471,0.72,251.58,251.48,26.0]
[1758216527645,0.72,251.57,251.48,26.0]
[1758216527964,2.35742929,251.56,251.47,0.65]
[1758216528171,2.28926162,251.56,251.45,0.31432314]
[1758216528362,2.28926162,251.56,251.46,13.59559401]
[1758216528664,1.63742929,251.56,251.46,13.59559401]
[1758216528852,13.91373484,251.55,251.46,13.59559401]
[1758216529365,13.91373484,251.55,251.46,39.59559401]
[1758216530069,0.72,251.54,251.46,39.59559401]
[1758216530264,0.72,251.54,251.46,26.0]
[1758216530470,0.72,251.53,251.46,26.0]
[1758216531069,3.97582697,251.52,251.46,26.0]
[1758216531249,3.97582697,251.52,251.45,4.69691156]
[1758216532666,9.93738221,251.58,251.46,14.56991715]
[1758216532976,10.65738221,251.58,251.48,13.59559401]
[1758216533175,10.65738221,251.58,251.49,0.69]
[1758216533560,3.97503676,251.57,251.49,0.69]
[1758216533747,0.67,251.56,251.47,13.59559401]
[1758216534074,0.67,251.56,251.48,0.67]
[1758216534671,3.97535281,251.55,251.48,4.64643624]
[1758216535764,3.97535281,251.55,251.49,13.59559401]
[1758216536168,3.97535281,251.55,251.49,17.57189311]
[1758216537963,29.97503676,251.57,251.5,0.67]
[1758216538778,30.64503676,251.57,251.5,0.67]
[1758216541263,30.64503676,251.57,251.49,17.57189311]
[1758216541680,30.64503676,251.57,251.49,97.27189311]
[1758216542456,39.91262868,251.57,251.45,0.03]
[1758216542678,0.69,251.56,251.45,0.03]
[1758216543056,0.69,251.56,251.45,0.75]
[1758216543466,34.63,251.56,251.45,4.72683903]
[1758216543680,0.69,251.55,251.46,14.31559401]
[1758216543982,0.69,251.54,251.46,14.31559401]
[1758216544174,33.94,251.56,251.46,13.59559401]
[1758216544381,0.69,251.53,251.46,13.59559401]
[1758216544976,3.97582697,251.52,251.45,0.03]
[1758216545172,4.66582697,251.52,251.45,26.03]
[1758216545487,14.6053944,251.52,251.45,0.03]
[1758216545786,4.66582697,251.52,251.45,4.00690023]
[1758216547575,4.66582697,251.52,251.45,83.70690023]
[1758216547887,0.69,251.52,251.45,83.70690023]
[1758216548097,3.97581699,251.53,251.46,14.31559401]
[1758216548394,0.69,251.54,251.46,14.31559401]
[1758216548770,1.69742929,251.6,251.47,0.28432314]
[1758216548771,0.06,251.6,251.47,0.28432314]
[1758216548985,0.69,251.58,251.48,13.59559401]
[1758216549181,0.69,251.57,251.48,13.59559401]
[1758216549485,0.69,251.57,251.47,47.51559401]
[1758216549688,0.69,251.56,251.47,13.59559401]
[1758216549890,4.66535281,251.55,251.47,17.57217536]
[1758216550363,0.69,251.54,251.47,17.57217536]
[1758216550570,0.69,251.53,251.45,0.75]
[1758216550783,0.69,251.53,251.46,13.59559401]
[1758216551576,4.665755,251.53,251.46,17.57231272]
[1758216551776,4.665755,251.53,251.46,3.97671871]
[1758216552969,4.665755,251.53,251.45,4.7269227]
[1758216554309,0.69,251.53,251.46,13.59559401]
[1758216554473,0.69,251.53,251.46,14.31559401]
[1758216555195,4.66567888,251.53,251.46,14.31559401]
[1758216555394,0.69,251.52,251.46,0.03]
[1758216555696,3.97567888,251.53,251.46,0.75]
[1758216555893,0.69,251.54,251.46,14.34559401]
[1758216556398,0.69,251.54,251.47,3.97661748]
[1758216557176,4.66551187,251.54,251.47,3.97661748]
[1758216559486,4.66551187,251.54,251.47,83.67661748]
[1758216560184,4.66520996,251.56,251.48,14.31559401]
[1758216560892,0.69,251.55,251.48,14.31559401]
[1758216561694,0.69,251.55,251.49,3.97630124]
[1758216562402,3.97520036,251.56,251.49,3.97630124]
[1758216562600,0.06,251.57,251.49,13.91705435]
[1758216562786,0.06,251.57,251.5,0.72]
[1758216563684,0.06,251.57,251.51,3.97598505]
[1758216564005,4.03504723,251.57,251.51,83.67598505]
[1758216564307,4.03504723,251.57,251.51,79.7]
[1758216565998,13.97263915,251.57,251.48,13.59559401]
[1758216566186,13.97263915,251.57,251.47,13.87991715]
[1758216567280,13.97263915,251.57,251.47,17.57221149]
[1758216568508,13.97263915,251.57,251.47,13.59559401]
[1758216568709,13.97263915,251.57,251.46,26.03]
[1758216568901,13.97263915,251.57,251.46,30.00677421]
[1758216569106,13.97263915,251.57,251.47,0.72]
[1758216569409,4.03504723,251.57,251.48,3.97645936]
[1758216569588,13.97263915,251.57,251.47,0.72]
[1758216570607,13.97263915,251.57,251.47,4.69661065]
[1758216570798,13.97263915,251.57,251.47,0.72]
[1758216571493,13.97263915,251.57,251.46,30.00676536]
[1758216571690,13.97263915,251.57,251.46,30.72676536]
[1758216572588,3.97535281,251.55,251.46,30.72676536]
[1758216572807,0.67,251.54,251.46,30.72676536]
[1758216573113,3.97535281,251.55,251.47,0.7]
[1758216573695,4.64535281,251.55,251.47,0.7]
[1758216574810,14.58373484,251.55,251.46,30.00676874]
[1758216575004,0.67,251.54,251.46,30.00676874]
[1758216575210,0.67,251.53,251.46,30.00676874]
[1758216575393,4.70516368,251.57,251.47,14.57991715]
[1758216575595,0.67,251.56,251.47,14.57991715]
[1758216575791,0.67,251.55,251.47,14.57991715]
[1758216576013,0.06,251.57,251.47,13.87991715]
[1758216576209,0.67,251.56,251.47,14.57991715]
[1758216576412,0.67,251.55,251.47,14.57991715]
[1758216576601,0.67,251.55,251.48,3.97645936]
[1758216576992,3.97519586,251.56,251.49,0.7]
[1758216577419,4.64519586,251.56,251.49,0.7]
[1758216578920,0.06,251.57,251.5,13.87991715]
[1758216579417,0.06,251.57,251.52,13.59559401]
[1758216579618,0.06,251.57,251.49,103.55400454]
[1758216579619,4.03504835,251.57,251.49,84.37629784]
[1758216579811,0.67,251.56,251.5,13.59559401]
[1758216582321,0.06,251.57,251.51,4.67598505]
[1758216583225,4.03510546,251.57,251.51,4.67598505]
[1758216583922,4.03510546,251.57,251.49,3.97616536]
[1758216584125,4.03510546,251.57,251.5,13.59559401]
[1758216584425,26.0,251.53,251.46,0.03]
[1758216584808,0.67,251.52,251.46,0.03]
[1758216585209,3.97598505,251.51,251.46,0.03]
[1758216585615,0.67,251.5,251.46,0.03]
[1758216586033,3.22864986,251.5,251.46,0.03]
[1758216586537,3.97630124,251.49,251.46,0.03]
[1758216587116,0.67,251.48,251.46,0.03]
[1758216587632,3.97661748,251.47,251.46,0.03]
[1758216587933,4.64661748,251.47,251.46,0.03]
[1758216588134,0.67,251.47,251.46,0.03]
[1758216588317,3.97611247,251.51,251.46,0.03]
[1758216588713,4.64611247,251.51,251.46,0.03]
[1758216589414,4.64611247,251.51,251.46,0.73]
[1758216589927,0.67,251.51,251.46,0.73]
[1758216590313,0.67,251.55,251.47,0.7]
[1758216590513,0.73,251.57,251.47,0.98432314]
[1758216590715,0.73,251.57,251.48,0.7]
[1758216591109,0.06,251.56,251.48,0.7]
[1758216591311,0.06,251.56,251.49,3.97630124]
[1758216591511,0.06,251.56,251.5,0.7]
[1758216591938,4.03521345,251.56,251.5,0.7]
[1758216592114,4.03521345,251.56,251.46,89.67160211]
[1758216592115,13.97320041,251.56,251.46,0.03]
[1758216592315,2.55864986,251.53,251.46,0.03]
[1758216592724,0.67,251.52,251.46,0.03]
[1758216593544,4.64594968,251.52,251.46,0.03]
[1758216594335,0.67,251.52,251.46,0.03]
[1758216594537,4.64584924,251.52,251.46,0.03]
[1758216597436,4.64584924,251.52,251.46,4.00677563]
[1758216597637,3.97563806,251.54,251.46,4.67677563]
[1758216598013,3.97535737,251.55,251.46,84.37677563]
[1758216598319,3.97535737,251.55,251.46,4.67677563]
[1758216598637,29.97535737,251.55,251.46,4.67677563]
[1758216599635,0.69,251.55,251.47,0.67]
[1758216600013,0.06,251.56,251.49,0.28432314]
[1758216600216,0.69,251.55,251.48,34.35]
[1758216600441,0.69,251.55,251.48,0.67]
[1758216600744,0.06,251.56,251.48,0.95432314]
[1758216600924,0.06,251.56,251.49,0.67]
[1758216601137,0.06,251.56,251.51,0.28432314]
[1758216601431,0.06,251.56,251.52,0.67]
[1758216601618,0.06,251.56,251.53,3.9756689]
[1758216602139,0.69,251.55,251.47,0.28432314]
[1758216602319,2.55864986,251.51,251.46,0.03]
[1758216602525,0.71,251.5,251.46,0.03]
[1758216603622,13.91705435,251.49,251.46,0.03]
[1758216604017,2.55864986,251.47,251.46,0.03]
[1758216604545,3.26864986,251.47,251.46,0.03]
[1758216605045,0.71,251.47,251.46,0.03]
[1758216605721,4.68661748,251.47,251.46,0.03]
[1758216607134,7.24526734,251.47,251.46,0.03]
[1758216607749,32.53574181,251.44,251.43,0.03]
[1758216607927,66.17574181,251.44,251.43,0.03]
[1758216608118,66.88574181,251.44,251.43,0.03]
[1758216609049,64.32709195,251.44,251.43,0.03]
[1758216609422,74.26982182,251.44,251.4,100.03]
[1758216609624,2.55864986,251.42,251.4,100.03]
[1758216609848,4.68756652,251.41,251.4,100.03]
[1758216610923,3.97738356,251.43,251.4,100.03]
[1758216611123,33.62,251.42,251.4,100.03]
[1758216611518,34.33,251.42,251.4,100.03]
[1758216611732,4.68756652,251.41,251.4,100.03]
[1758216612324,3.97756652,251.41,251.4,100.03]
[1758216613529,2.55864986,251.46,251.4,100.03]
[1758216613530,0.71,251.48,251.4,100.71]
[1758216613831,37.59653811,251.48,251.41,0.68]
[1758216614156,38.30653811,251.48,251.41,0.68]
[1758216614526,38.30653811,251.48,251.4,100.03]
[1758216614727,0.71,251.47,251.4,100.03]
[1758216614928,0.71,251.46,251.4,100.03]
[1758216616028,3.97693378,251.45,251.4,100.03]
[1758216616227,3.97693378,251.45,251.4,100.71]
[1758216616423,3.97693378,251.45,251.4,100.03]
[1758216616424,4.68693378,251.45,251.4,100.03]
[1758216616757,0.71,251.44,251.4,100.03]
[1758216616959,0.71,251.43,251.4,100.03]
[1758216617535,13.91926824,251.45,251.4,100.03]
[1758216617939,3.97670337,251.47,251.41,0.68]
[1758216618632,0.71,251.46,251.4,100.03]
[1758216618971,0.71,251.45,251.4,100.03]
[1758216619130,3.97670337,251.47,251.4,100.03]
[1758216619336,0.71,251.46,251.4,100.03]
[1758216619553,0.71,251.45,251.4,100.03]
[1758216619735,0.71,251.44,251.4,100.03]
[1758216620333,3.97725012,251.43,251.4,100.03]
[1758216620653,0.71,251.42,251.4,100.03]
[1758216621035,3.97725012,251.43,251.4,100.03]
[1758216621239,0.71,251.5,251.41,0.68]
[1758216621434,33.58,251.49,251.41,0.68]
[1758216621750,0.71,251.48,251.4,100.03]
[1758216621951,0.71,251.48,251.4,100.71]
[1758216622341,13.9181612,251.47,251.4,100.71]
[1758216623353,14.6281612,251.47,251.4,100.03]
[1758216624243,13.91926824,251.45,251.4,100.03]
[1758216624440,34.27,251.44,251.4,100.03]
[1758216624641,0.71,251.43,251.4,100.03]
[1758216625041,0.71,251.42,251.4,100.03]
[1758216625237,33.56,251.44,251.4,100.03]
[1758216625436,33.56,251.46,251.41,0.68]
[1758216625636,37.53676758,251.47,251.42,0.68]
[1758216625965,33.56,251.47,251.43,0.68]
[1758216626459,3.97677563,251.46,251.43,0.68]
[1758216627354,0.06,251.47,251.44,0.68]
[1758216627959,0.06,251.47,251.45,0.68]
[1758216628455,0.06,251.47,251.41,4.65964631]
[1758216628664,0.06,251.47,251.42,0.68]
[1758216628858,0.06,251.47,251.43,13.59559401]
[1758216629154,0.06,251.47,251.44,0.96432314]
[1758216629553,0.06,251.47,251.45,0.68]
[1758216629754,0.06,251.47,251.46,13.87991715]
[1758216630149,0.06,251.47,251.46,8.58]
[1758216631043,0.06,251.47,251.46,12.55677563]
[1758216631671,0.06,251.47,251.46,13.23877633]
[1758216632957,0.06,251.47,251.46,60.35437034]
[1758216633571,0.06,251.47,251.46,7.9]
[1758216633749,0.06,251.47,251.46,8.6]
[1758216633950,0.06,251.47,251.46,22.33775558]
[1758216634154,0.06,251.47,251.46,22.47991715]
[1758216637368,0.06,251.47,251.46,55.97991715]
[1758216638356,0.06,251.5,251.47,27.79807835]
[1758216638557,0.06,251.5,251.49,13.87991715]
[1758216639061,0.06,251.5,251.49,14.57991715]
[1758216639263,0.06,251.56,251.55,43.85526996]
[1758216639467,0.06,251.56,251.5,0.28432314]
[1758216639468,0.06,251.56,251.48,79.64]
[1758216639672,0.06,251.56,251.51,0.14216157]
[1758216639987,0.67,251.55,251.48,3.97631865]
[1758216640154,0.67,251.54,251.48,33.48]
[1758216640356,0.67,251.53,251.48,33.48]
[1758216640579,0.67,251.52,251.47,13.59559401]
[1758216640782,0.67,251.51,251.46,7.9]
[1758216641088,30.03525402,251.56,251.46,7.9]
[1758216641389,30.03525402,251.56,251.48,3.97645936]
[1758216641390,4.70525402,251.56,251.48,3.97645936]
[1758216641765,4.03525402,251.56,251.48,3.97645936]
[1758216641967,0.67,251.55,251.48,3.97645936]
[1758216642374,0.06,251.56,251.49,47.73754727]
[1758216642774,0.06,251.56,251.49,48.43754727]
[1758216643068,0.06,251.56,251.52,0.28432314]
[1758216643271,0.06,251.56,251.55,3.97535281]
[1758216643676,0.06,251.56,251.54,0.28432314]
[1758216644875,0.06,251.56,251.54,1.38187422]
[1758216645180,0.06,251.56,251.53,37.43552983]
[1758216645181,0.06,251.56,251.55,13.87991715]
[1758216645383,0.06,251.56,251.55,0.28432314]
[1758216646772,0.06,251.56,251.55,14.57991715]
[1758216647279,0.06,251.56,251.55,13.87991715]
[1758216649059,0.06,251.56,251.55,47.31991715]
[1758216649501,0.06,251.56,251.55,13.87991715]
[1758216649694,0.06,251.56,251.55,0.28432314]
[1758216649897,0.06,251.56,251.54,33.44]
[1758216649898,0.06,251.56,251.54,0.28432314]
[1758216650192,0.73,251.56,251.54,0.14216157]
[1758216650365,0.06,251.56,251.54,0.14216157]
[1758216650566,0.06,251.56,251.54,0.28432314]
[1758216651382,0.06,251.56,251.55,14.97745243]
[1758216651773,0.06,251.56,251.55,18.95280524]
[1758216652288,0.06,251.56,251.55,18.25280524]
[1758216652495,0.06,251.56,251.55,18.95280524]
[1758216652782,0.06,251.56,251.55,52.37280524]
[1758216652980,0.06,251.56,251.55,132.01280524]
[1758216653310,0.06,251.56,251.55,131.61526996]
[1758216654661,0.06,251.56,251.55,131.59526996]
[1758216654866,0.06,251.57,251.56,13.87991715]
[1758216655074,0.06,251.57,251.56,14.94743662]
[1758216656085,0.06,251.59,251.58,39.87991715]
[1758216656287,0.06,251.59,251.58,73.67740502]
[1758216656490,0.06,251.59,251.58,153.98740502]
[1758216656798,0.06,251.59,251.58,153.58991715]
[1758216657993,0.06,251.6,251.59,13.87991715]
[1758216658168,1e-08,251.62,251.61,26.28432314]
[1758216658374,1e-08,251.62,251.61,153.29735763]
[1758216658574,1e-08,251.62,251.61,153.56991715]
[1758216659291,0.06,251.74,251.68,39.87991715]
[1758216659591,0.06,251.74,251.68,73.25991715]
[1758216660003,0.06,251.74,251.68,77.63054651]
[1758216660176,0.06,251.74,251.68,124.56054651]
[1758216660375,0.06,251.74,251.68,156.85321657]
[1758216660376,0.75,251.74,251.68,156.85321657]
[1758216660694,0.75,251.69,251.67,33.36]
[1758216660883,0.69,251.68,251.64,39.73775558]
[1758216661089,0.69,251.67,251.65,33.36]
[1758216661276,0.06,251.69,251.66,33.36]
[1758216661476,0.06,251.69,251.62,13.59559401]
[1758216661782,0.69,251.68,251.61,3.97430433]
[1758216662098,0.69,251.67,251.61,3.97430433]
[1758216662274,0.69,251.66,251.62,33.36]
[1758216662474,0.7,251.65,251.62,33.36]
[1758216662668,0.7,251.64,251.62,33.36]
[1758216662902,0.7,251.63,251.61,33.36]
[1758216664181,0.7,251.63,251.61,37.33433973]
[1758216664775,0.7,251.67,251.62,13.87991715]
[1758216664976,0.7,251.67,251.63,33.34]
[1758216665194,0.06,251.69,251.64,0.28432314]
[1758216665401,0.7,251.68,251.65,33.34]
[1758216665591,0.7,251.67,251.65,33.34]
[1758216665982,0.06,251.69,251.66,0.28432314]
[1758216666176,0.7,251.68,251.67,33.34]
[1758216666393,0.7,251.68,251.63,0.28432314]
[1758216666600,0.7,251.68,251.55,0.28432314]
[1758216666895,0.7,251.68,251.57,13.59559401]
[1758216667198,0.7,251.67,251.58,33.34]
[1758216667396,0.7,251.67,251.59,13.99306608]
[1758216667700,0.7,251.67,251.63,13.87991715]
[1758216667882,0.7,251.67,251.65,0.28432314]
[1758216668082,0.7,251.66,251.65,0.28432314]
[1758216668779,0.7,251.66,251.64,33.32]
[1758216668997,4.03317006,251.69,251.61,26.0]
[1758216668998,0.7,251.65,251.61,26.0]
[1758216669203,0.7,251.64,251.56,13.59559401]
[1758216669495,26.0,251.66,251.55,33.32]
[1758216669496,0.7,251.63,251.55,33.32]
[1758216669698,0.7,251.63,251.53,14.26559401]
[1758216670005,0.7,251.62,251.54,33.32]
[1758216670202,0.7,251.61,251.56,0.28432314]
[1758216670379,0.06,251.69,251.59,0.28432314]
[1758216670583,0.7,251.68,251.61,13.87991715]
[1758216670800,0.7,251.68,251.61,14.27735763]
[1758216671511,0.06,251.69,251.61,14.94735763]
[1758216671712,0.76,251.69,251.61,14.94735763]
[1758216671878,0.06,251.69,251.65,13.87991715]
[1758216672081,0.06,251.69,251.68,17.85321657]
[1758216672688,0.06,251.69,251.68,43.85321657]
[1758216672905,0.06,251.69,251.68,44.52321657]
[1758216675711,0.06,251.69,251.68,43.85321657]
[1758216676407,0.06,251.69,251.68,44.92054651]
[1758216677112,0.06,251.69,251.68,78.22054651]
[1758216678202,0.06,251.72,251.71,39.87991715]
[1758216678398,0.06,251.72,251.71,73.55719973]
[1758216678600,0.06,251.72,251.71,74.22719973]
[1758216679115,0.06,251.74,251.72,13.87991715]
[1758216679303,0.06,251.74,251.73,39.87991715]
[1758216679509,0.76,251.74,251.73,0.14216157]
[1758216679808,0.76,251.74,251.73,33.42216157]
[1758216680207,0.76,251.74,251.73,33.56432314]
[1758216680414,0.06,251.74,251.73,33.56432314]
[1758216681599,0.06,251.74,251.73,47.55716817]
[1758216681814,1e-08,251.74,251.73,48.22716817]
[1758216682114,0.06,251.78,251.74,17.85226957]
[1758216682115,1e-08,251.75,251.74,17.85226957]
[1758216682320,1e-08,251.75,251.74,18.52226957]
[1758216683016,1e-08,251.75,251.74,51.78226957]
[1758216684199,1e-08,251.75,251.74,18.52226957]
[1758216684418,1e-08,251.75,251.74,51.78226957]
[1758216684714,1e-08,251.75,251.74,18.52226957]
[1758216684891,1e-08,251.75,251.74,51.78226957]
[1758216685313,1e-08,251.75,251.74,18.52226957]
[1758216685493,1e-08,251.75,251.74,17.85226957]
[1758216685689,1e-08,251.75,251.74,51.09226957]
[1758216685911,1e-08,251.75,251.74,17.85226957]
[1758216686119,1e-08,251.75,251.74,51.09226957]
[1758216686418,1e-08,251.75,251.74,50.80794643]
[1758216686612,1e-08,251.75,251.74,50.950108]
[1758216686921,1e-08,251.75,251.74,51.09226957]
[1758216687801,1e-08,251.75,251.74,17.85226957]
[1758216688124,1e-08,251.75,251.74,51.09226957]
[1758216689016,1e-08,251.75,251.74,52.15950481]
[1758216689520,1e-08,251.75,251.74,51.48950481]
[1758216689715,1e-08,251.75,251.74,51.46950481]
[1758216689916,1e-08,251.75,251.74,18.24950481]
[1758216690131,1e-08,251.75,251.74,51.46950481]
[1758216690519,1e-08,251.75,251.74,53.05835111]
[1758216691118,1e-08,251.75,251.74,53.72835111]
[1758216691708,1e-08,251.75,251.74,19.83835111]
[1758216691906,1e-08,251.75,251.74,53.05835111]
[1758216692123,1e-08,251.75,251.74,19.83835111]
[1758216692308,1e-08,251.75,251.74,53.05835111]
[1758216692628,1e-08,251.75,251.74,19.83835111]
[1758216692802,1e-08,251.75,251.74,53.05835111]
[1758216693201,1e-08,251.75,251.74,17.710108]
[1758216693428,0.66000001,251.75,251.74,50.910108]
[1758216693621,1e-08,251.75,251.74,51.05226957]
[1758216694333,0.66000001,251.75,251.74,51.05226957]
[1758216694529,1e-08,251.75,251.74,51.05226957]
[1758216695909,1e-08,251.75,251.74,51.70226957]
[1758216696332,1e-08,251.75,251.74,131.40226957]
[1758216696516,0.06,251.78,251.77,39.59559401]
[1758216696711,0.06,251.78,251.77,73.47710505]
[1758216697230,0.06,251.78,251.77,79.68776733]
[1758216697432,0.06,251.78,251.77,79.03776733]
[1758216697639,0.06,251.78,251.77,53.03776733]
[1758216697833,0.06,251.78,251.77,51.44898414]
[1758216698635,0.06,251.78,251.77,77.44898414]
[1758216699131,4.69172603,251.78,251.7,13.59559401]
[1758216699312,4.69172603,251.78,251.65,0.68]
[1758216699313,0.66,251.77,251.71,33.18]
[1758216699729,0.66,251.76,251.71,33.18]
[1758216699931,0.66,251.75,251.71,33.18]
[1758216700114,0.66,251.74,251.71,33.18]
[1758216700435,0.66,251.73,251.68,0.03]
[1758216700619,0.66,251.73,251.68,33.21]
[1758216700812,0.66,251.72,251.68,33.21]
[1758216701014,0.66,251.71,251.68,0.03]
[1758216701637,0.66,251.7,251.68,0.03]
[1758216701845,0.66,251.69,251.68,0.03]
[1758216708945,9.85059822,251.77,251.68,0.03]
[1758216709253,0.66,251.72,251.68,0.03]
[1758216709545,0.06,251.78,251.68,0.31432314]
[1758216709739,0.66,251.76,251.68,0.31432314]
[1758216710745,0.66,251.76,251.69,3.97314156]
[1758216713023,4.0317592,251.78,251.69,3.97314156]
[1758216713024,0.66,251.75,251.69,3.97314156]
[1758216713646,0.66,251.75,251.69,83.67314155]
[1758216716038,0.06,251.76,251.7,0.28432314]
[1758216716237,0.06,251.76,251.7,0.68162151]
[1758216716543,0.06,251.76,251.7,0.28432314]
[1758216716741,0.65,251.75,251.7,0.28432314]
[1758216716948,0.65,251.74,251.7,0.28432314]
[1758216717255,0.65,251.73,251.7,0.28432314]
[1758216717460,0.65,251.72,251.7,0.28432314]
[1758216717633,0.65,251.72,251.7,83.95719628]
[1758216718324,4.03204263,251.76,251.7,79.69999999]
[1758216718325,0.65,251.71,251.7,79.69999999]